bitfinex/quotes_ETHUSD_20260217
["timestamp","ask_amount","ask_price","bid_price","bid_amount"]
[1771333704707,0.00151937,1977.0,1976.3,0.49242747]
[1771333705135,0.00151937,1977.0,1976.6,1.7572256]
[1771333705442,0.00151937,1977.0,1976.6,1.26479813]
[1771333706151,0.00151937,1977.0,1976.6,1.7572256]
[1771333706654,0.0011,1976.9,1976.7,0.49242747]
[1771333707140,0.0011,1977.0,1976.8,1.26467017]
[1771333707317,1.714854,1978.0,1976.8,1.26467017]
[1771333707509,1.36620632,1978.2,1977.0,0.00151937]
[1771333707713,0.912,1978.1,1977.0,0.00151937]
[1771333708119,1.36996539,1978.1,1977.0,0.00151937]
[1771333708347,0.56036539,1978.0,1977.0,0.00151937]
[1771333709015,0.45796539,1978.0,1977.0,0.00151937]
[1771333709216,1.994,1978.0,1977.0,0.00151937]
[1771333710140,0.1024,1978.1,1977.0,0.00151937]
[1771333710440,2.0964,1978.1,1977.0,0.00151937]
[1771333710841,2.55436539,1978.1,1977.0,0.00151937]
[1771333711162,1.26364739,1978.4,1977.2,0.49242747]
[1771333711442,0.45796539,1978.3,1977.1,1.26447827]
[1771333712815,2.45296539,1978.3,1977.1,1.26447827]
[1771333713119,1.26377514,1978.2,1977.0,5.05943247]
[1771333714116,3.25777514,1978.2,1977.0,5.55185994]
[1771333714642,1.26377514,1978.2,1977.0,5.55185994]
[1771333714834,1.082,1978.2,1977.1,0.49242747]
[1771333715015,7.34013337,1978.1,1977.0,5.05943247]
[1771333715414,1.26390293,1978.0,1977.0,0.00151937]
[1771333715825,1.72186832,1978.0,1977.0,0.00151937]
[1771333716434,2.80486832,1978.0,1977.0,0.00151937]
[1771333717047,1.26390293,1978.0,1977.0,0.00151937]
[1771333717254,1.083,1977.9,1977.0,0.00151937]
[1771333717450,1.26395394,1978.0,1977.0,0.00151937]
[1771333717643,1.083,1977.9,1977.0,0.00151937]
[1771333719156,0.45796539,1978.3,1977.0,0.00151937]
[1771333719157,2.34532811,1978.9,1977.3,0.49242747]
[1771333719361,0.0011,1978.0,1977.4,1.26428643]
[1771333719742,0.0011,1978.0,1977.5,0.49242747]
[1771333720039,1.26350219,1978.7,1977.5,0.49242747]
[1771333720274,0.0011,1978.6,1977.5,0.49242747]
[1771333720766,0.0011,1978.5,1977.5,0.49242747]
[1771333721068,0.0011,1978.6,1977.5,0.49242747]
[1771333721756,0.0011,1978.5,1977.6,1.26415857]
[1771333721961,0.56146539,1978.7,1977.5,1.75659911]
[1771333722276,0.56146539,1978.7,1977.5,1.26417164]
[1771333722568,7.69679876,1978.6,1977.3,5.05726737]
[1771333723267,0.45906539,1978.5,1977.3,1.26435037]
[1771333723763,0.45906539,1978.5,1977.2,5.05752001]
[1771333723764,1.26371126,1978.3,1977.1,2.24943133]
[1771333724067,8.77669876,1978.2,1977.0,1.26602253]
[1771333724257,8.77779876,1978.2,1977.0,1.26602253]
[1771333724461,0.0011,1978.1,1977.1,0.49360418]
[1771333724762,1.0821,1978.1,1977.1,0.49360418]
[1771333725165,0.0011,1978.0,1977.1,0.49360418]
[1771333725749,0.0011,1978.0,1977.2,1.26441432]
[1771333725941,0.0011,1978.0,1977.3,0.49360418]
[1771333726147,0.0011,1977.9,1977.3,0.49360418]
[1771333726462,0.0011,1978.3,1977.3,0.49360418]
[1771333726837,0.0011,1978.2,1977.3,0.49360418]
[1771333727037,0.0011,1978.3,1977.3,0.49360418]
[1771333727673,0.0011,1978.2,1977.3,0.49360418]
[1771333727962,0.0011,1978.3,1977.4,1.75789061]
[1771333728289,0.0011,1978.4,1977.4,1.75789061]
[1771333728460,0.0011,1978.4,1977.5,0.49360418]
[1771333728971,5.05451805,1978.5,1977.5,0.49360418]
[1771333729141,0.0011,1978.4,1977.5,0.49360418]
[1771333729783,0.0011,1978.3,1977.6,1.26415857]
[1771333729969,0.0011,1978.4,1977.5,1.26417859]
[1771333730444,0.0011,1978.3,1977.5,1.26417859]
[1771333730640,0.0011,1978.4,1977.5,1.26417859]
[1771333730841,0.4863651,1978.3,1977.3,1.26430877]
[1771333731170,0.4874651,1978.3,1977.3,1.26430877]
[1771333731359,0.4874651,1978.3,1977.2,1.26436325]
[1771333731360,0.0011,1978.2,1977.2,1.26436325]
[1771333731865,1.26487514,1978.2,1977.2,1.26436325]
[1771333732071,0.0011,1978.1,1977.2,1.26436325]
[1771333733170,0.0011,1978.0,1977.2,1.26436325]
[1771333733461,0.0011,1978.1,1977.2,1.26436325]
[1771333734769,0.0011,1978.0,1977.2,1.26436325]
[1771333734966,0.0011,1978.1,1977.2,1.26436325]
[1771333735469,2.34487514,1978.2,1977.2,1.26436325]
[1771333735668,0.0011,1978.1,1977.2,1.26436325]
[1771333736870,0.0011,1978.0,1977.2,1.26436325]
[1771333737072,1.08,1978.0,1977.2,1.26436325]
[1771333737276,0.0011,1977.9,1977.2,1.26436325]
[1771333739444,1.26506683,1977.9,1977.2,1.26436325]
[1771333740453,0.0011,1977.8,1977.1,0.001]
[1771333740856,0.0011,1977.7,1977.1,1.26547311]
[1771333741045,0.0011,1977.8,1977.1,1.75404659]
[1771333741574,0.0011,1977.7,1977.2,0.48857348]
[1771333741755,1.0781,1978.1,1977.2,0.48857348]
[1771333741951,0.0011,1978.1,1977.2,0.48857348]
[1771333742281,0.0011,1978.1,1977.3,0.48857348]
[1771333742653,0.0011,1978.0,1977.3,0.48857348]
[1771333743652,0.0011,1978.0,1977.5,0.48857348]
[1771333743848,0.0011,1977.9,1977.4,1.26428643]
[1771333744063,0.0011,1978.1,1977.4,1.26428643]
[1771333744263,5.5109356,1978.5,1977.4,1.26428643]
[1771333744264,0.1321173,1979.1,1977.9,6.63892345]
[1771333744580,1.72137909,1979.0,1977.8,0.977]
[1771333744800,7.09547312,1978.9,1977.8,0.977]
[1771333745009,7.09547312,1978.6,1977.8,0.0011]
[1771333745289,7.09547312,1978.6,1977.4,0.48857348]
[1771333745460,1.988,1978.5,1977.5,0.0011]
[1771333745797,0.0011,1978.2,1977.5,1.2653225]
[1771333745953,0.0011,1978.2,1977.6,0.0011]
[1771333746153,0.0011,1978.2,1977.6,0.48967348]
[1771333746452,0.0011,1978.2,1977.7,0.48967348]
[1771333746677,0.0011,1978.2,1977.7,0.48857348]
[1771333746880,0.0011,1978.2,1977.8,0.0011]
[1771333747353,0.0011,1978.2,1977.9,0.0011]
[1771333747680,0.0011,1978.2,1977.8,0.48967348]
[1771333747880,0.0011,1978.2,1977.6,1.26410916]
[1771333748079,0.0011,1978.2,1977.5,1.75274382]
[1771333748384,0.0011,1978.2,1977.6,0.48967348]
[1771333748879,0.0011,1978.3,1977.8,0.48857348]
[1771333749785,0.0011,1978.3,1978.0,0.48857348]
[1771333750754,1.72138456,1979.0,1977.8,0.977]
[1771333750957,0.45654967,1978.9,1977.8,0.977]
[1771333751156,0.45654967,1978.9,1977.7,1.75263135]
[1771333751362,0.45654967,1978.9,1977.8,0.48857348]
[1771333751584,1.074,1978.8,1977.8,0.48857348]
[1771333751785,1.26339195,1978.8,1977.9,1.26396683]
[1771333752356,1.26339195,1978.8,1977.8,1.75256395]
[1771333752560,1.26339195,1978.8,1977.8,0.48857348]
[1771333753188,2.33739195,1978.8,1977.8,1.75260298]
[1771333753497,2.33739195,1978.8,1977.8,1.75258596]
[1771333753664,2.79394162,1978.8,1977.6,10.55157348]
[1771333753864,2.79394162,1978.8,1977.7,1.26409465]
[1771333754071,2.79394162,1978.8,1977.6,1.75267957]
[1771333754259,2.79394162,1978.8,1977.7,0.48857348]
[1771333754460,0.48552594,1978.7,1977.7,0.48857348]
[1771333754683,0.48552594,1978.7,1977.5,8.8]
[1771333755095,7.12444939,1978.5,1977.4,0.88077446]
[1771333755274,0.48552594,1978.5,1977.4,0.88077446]
[1771333755674,0.48552594,1978.5,1977.4,0.47077446]
[1771333755889,1.74917333,1978.4,1977.4,0.47077446]
[1771333756192,1.74917333,1978.4,1977.4,1.73506021]
[1771333756913,1.075,1978.3,1977.4,1.73506021]
[1771333757072,1.075,1978.3,1977.4,0.47077446]
[1771333757410,1.075,1978.3,1977.5,0.47077446]
[1771333757976,1.26377514,1978.2,1977.5,0.47077446]
[1771333759505,1.26377514,1978.2,1977.5,0.47177446]
[1771333760203,1.26377514,1978.2,1977.5,0.001]
[1771333762407,1.74930108,1978.2,1977.5,0.001]
[1771333762984,1.075,1978.1,1977.5,0.001]
[1771333764108,1.26396683,1977.9,1977.5,0.001]
[1771333765910,1.075,1978.0,1977.5,0.47177446]
[1771333766114,2.33896622,1978.0,1977.5,0.47177446]
[1771333766916,1.26364739,1978.4,1977.5,0.47177446]
[1771333767087,1.075,1978.3,1977.6,0.47077446]
[1771333767285,2.33864739,1978.4,1977.6,0.47077446]
[1771333767484,1.26364739,1978.4,1977.6,0.47077446]
[1771333768202,1.26364739,1978.4,1977.8,0.47077446]
[1771333768603,1.26470958,1978.5,1977.8,0.47077446]
[1771333769307,0.0011,1978.5,1977.8,0.47077446]
[1771333769516,1.26469562,1978.5,1977.8,0.47077446]
[1771333769823,0.0011,1978.5,1977.8,0.47077446]
[1771333769999,1.26468397,1978.5,1977.8,0.47077446]
[1771333770333,1.26468397,1978.5,1977.5,6.0288618]
[1771333770334,0.0011,1978.5,1978.0,0.47077446]
[1771333770496,0.0011,1978.5,1977.6,1.73493303]
[1771333770985,0.0011,1978.5,1977.7,0.47077446]
[1771333774328,0.0011,1978.4,1977.8,0.47077446]
[1771333775090,0.0011,1978.4,1977.9,0.47077446]
[1771333777425,0.0011,1978.4,1977.7,0.47077446]
[1771333779914,0.0011,1978.4,1977.7,1.73486253]
[1771333780224,0.0011,1978.4,1977.8,0.47077446]
[1771333781094,0.0011,1978.4,1977.6,0.001]
[1771333781294,0.48662594,1978.4,1977.6,0.001]
[1771333782025,1.7492372,1978.3,1977.6,0.001]
[1771333783236,0.48552594,1978.2,1977.6,0.001]
[1771333783601,1.067,1978.1,1977.6,0.001]
[1771333783802,1.26371126,1978.3,1977.6,0.001]
[1771333784119,2.8162372,1978.3,1977.6,0.001]
[1771333785839,1.7492372,1978.3,1977.6,0.001]
[1771333786132,1.067,1978.2,1977.6,0.001]
[1771333786335,1.26383903,1978.1,1977.6,0.001]
[1771333787037,1.26383903,1978.1,1977.7,0.46521702]
[1771333787405,1.26383903,1978.1,1977.6,0.001]
[1771333787948,1.26383903,1978.1,1977.4,0.001]
[1771333788143,1.26383903,1978.1,1977.4,0.46621702]
[1771333788503,1.26383903,1978.1,1977.5,1.72943952]
[1771333788728,1.26383903,1978.1,1977.5,1.2642225]
[1771333789031,1.26371126,1978.3,1977.6,0.46521702]
[1771333790142,1.26371126,1978.3,1977.7,0.46621702]
[1771333790310,1.26481126,1978.3,1977.7,0.46621702]
[1771333790819,0.0011,1978.3,1977.7,0.001]
[1771333793310,1.0681,1978.3,1977.7,0.001]
[1771333794211,1.067,1978.2,1977.7,0.001]
[1771333796043,1.26383903,1978.1,1977.7,0.001]
[1771333796241,1.26383903,1978.1,1977.8,0.45035868]
[1771333796424,1.26383903,1978.1,1977.7,0.001]
[1771333798148,0.0011,1978.3,1977.7,0.001]
[1771333798452,0.0011,1978.3,1977.7,0.45135868]
[1771333798622,1.0691,1978.3,1977.7,0.45135868]
[1771333799342,1.0691,1978.3,1977.7,0.001]
[1771333799841,1.0681,1978.3,1977.7,0.001]
[1771333800313,1.26377514,1978.2,1977.7,0.001]
[1771333800715,1.7495658,1978.2,1977.7,0.001]
[1771333801247,1.26377514,1978.2,1977.7,0.001]
[1771333801554,1.26377514,1978.2,1977.7,0.45135868]
[1771333801729,1.26485025,1978.3,1977.7,0.45135868]
[1771333801933,1.26481863,1978.3,1977.7,0.45135868]
[1771333802334,0.0011,1978.3,1977.8,0.45035868]
[1771333804629,0.0011,1978.3,1978.0,0.45035868]
[1771333804829,0.0011,1978.2,1978.0,0.45035868]
[1771333805558,0.0011,1978.4,1978.0,0.45035868]
[1771333806861,0.0011,1978.4,1978.1,0.45035868]
[1771333807177,5.67117399,1979.1,1978.0,1.26387364]
[1771333807178,0.1321173,1979.1,1978.4,0.45035868]
[1771333808738,0.1321173,1979.1,1978.5,1.26358352]
[1771333808949,0.1321173,1979.1,1978.6,0.45035868]
[1771333809150,0.00151937,1980.0,1978.6,0.45035868]
[1771333809352,0.00151937,1980.0,1978.5,1.26358352]
[1771333809353,5.05077173,1979.9,1978.8,0.45035868]
[1771333809645,5.53656239,1979.9,1978.8,0.45035868]
[1771333809853,6.11777173,1979.9,1978.8,0.45035868]
[1771333810038,6.10523128,1979.9,1978.7,0.45035868]
[1771333810638,5.03823128,1979.9,1978.7,0.45035868]
[1771333810940,1.067,1979.8,1978.7,0.45035868]
[1771333811344,1.26281759,1979.7,1978.9,0.45035868]
[1771333812859,5.05091932,1979.9,1978.9,0.45035868]
[1771333813441,5.05091932,1979.9,1978.9,1.71367763]
[1771333813663,5.05091932,1979.9,1979.0,0.45035868]
[1771333813865,1.26351859,1981.0,1980.0,0.45035868]
[1771333814162,0.00151937,1981.0,1980.2,0.45035868]
[1771333814362,1.065,1981.6,1980.4,0.48067635]
[1771333814363,1.26167045,1981.5,1980.4,0.48067635]
[1771333814738,6.00531924,1981.9,1980.6,0.48067635]
[1771333814739,4.7173373,1981.8,1980.6,0.48067635]
[1771333814935,2.2201169,1981.9,1980.8,0.48067635]
[1771333815133,0.95863744,1981.9,1981.0,0.48067635]
[1771333815367,0.95863744,1981.9,1980.9,1.28614348]
[1771333815368,2.22005561,1981.9,1981.2,0.48067635]
[1771333815551,2.22005561,1981.9,1981.4,0.48067635]
[1771333815753,0.95863744,1981.9,1981.5,0.94581983]
[1771333815955,2.22006657,1981.9,1981.6,0.46514348]
[1771333816155,0.95863744,1981.9,1981.7,0.46514348]
[1771333816344,0.95863744,1981.9,1981.5,0.48067635]
[1771333816664,0.95863744,1981.9,1981.6,0.9428089]
[1771333816843,0.95863744,1981.9,1981.7,0.46213255]
[1771333817051,1.26117474,1982.3,1981.8,0.48067635]
[1771333817434,5.95350017,1982.9,1981.8,0.48067635]
[1771333817435,5.04350017,1982.9,1981.8,0.48067635]
[1771333817763,0.48599977,1982.9,1981.4,0.48067635]
[1771333817950,0.48599977,1982.9,1981.2,2.17183214]
[1771333817951,0.662,1982.8,1981.5,0.9415376]
[1771333818157,0.662,1982.8,1981.2,2.65250849]
[1771333818158,0.48599977,1982.7,1981.2,2.65250849]
[1771333818469,0.48599977,1982.7,1981.0,0.00151937]
[1771333818470,0.48599977,1982.4,1981.0,0.00151937]
[1771333818768,7.19116626,1982.5,1981.0,0.00151937]
[1771333818769,0.48599977,1982.1,1981.0,0.00151937]
[1771333818939,1.068,1982.0,1981.0,0.00151937]
[1771333819135,0.0011,1981.8,1981.0,0.00151937]
[1771333819567,1.26257946,1981.8,1981.0,0.00151937]
[1771333819977,1.26257946,1981.8,1980.7,1.26213607]
[1771333819978,0.48298875,1981.7,1980.7,1.26213607]
[1771333820146,0.48298875,1981.7,1980.3,14.744604]
[1771333820147,1.068,1981.6,1980.3,14.744604]
[1771333820346,1.068,1981.6,1980.3,15.22436346]
[1771333820641,0.48298875,1981.7,1980.3,0.47975946]
[1771333821153,1.978,1981.6,1980.3,0.47975946]
[1771333821353,0.48298875,1981.7,1980.3,0.47975946]
[1771333821548,1.26167045,1981.5,1980.4,1.26237123]
[1771333821765,1.26167045,1981.5,1980.6,0.47975946]
[1771333822772,0.0011,1981.8,1980.6,0.47975946]
[1771333822942,1.26260476,1981.8,1980.7,13.585401]
[1771333823273,1.26260476,1981.8,1980.6,1.43775946]
[1771333823440,1.26260476,1981.8,1980.7,3.563291]
[1771333823643,0.0011,1981.8,1980.8,1.26211631]
[1771333823842,0.0011,1981.8,1980.6,1.43775946]
[1771333824042,0.0011,1981.8,1980.6,0.958]
[1771333824043,0.48298875,1981.7,1980.6,0.958]
[1771333825568,1.067,1981.6,1980.6,0.958]
[1771333825872,1.26167045,1981.5,1980.6,0.958]
[1771333826474,1.26167045,1981.5,1980.6,2.22023084]
[1771333826776,1.26167045,1981.5,1980.6,0.958]
[1771333827159,1.26167045,1981.5,1980.6,2.22023983]
[1771333827669,5.0466818,1981.6,1980.6,2.22023983]
[1771333828363,6.1126818,1981.6,1980.6,0.958]
[1771333829253,6.1126818,1981.6,1980.6,2.22024225]
[1771333829449,6.1126818,1981.6,1980.6,0.958]
[1771333829648,5.0466818,1981.6,1980.6,0.958]
[1771333829870,6.1116818,1981.6,1980.6,0.958]
[1771333830077,6.0012818,1981.6,1980.6,0.958]
[1771333830277,6.0012818,1981.6,1980.6,2.22024035]
[1771333830586,1.065,1981.5,1980.6,2.22024035]
[1771333830799,1.065,1981.5,1980.6,0.958]
[1771333830965,1.065,1981.5,1980.5,2.17227295]
[1771333831682,6.0002818,1981.6,1980.5,2.17227295]
[1771333832059,6.48327055,1981.6,1980.5,0.91]
[1771333832256,0.48298875,1981.5,1980.5,0.91]
[1771333833360,0.48408875,1981.5,1980.5,0.91]
[1771333833679,0.48408875,1981.5,1980.4,0.001]
[1771333833887,1.26186149,1981.2,1980.4,0.001]
[1771333834053,1.064,1981.1,1980.4,0.001]
[1771333834560,1.063,1981.1,1980.4,0.001]
[1771333835952,1.26198889,1981.0,1980.4,0.001]
[1771333838282,5.04795557,1981.1,1980.4,0.001]
[1771333840385,6.11395557,1981.1,1980.4,0.001]
[1771333840570,1.067,1981.4,1980.4,0.48075946]
[1771333841367,0.48408875,1981.5,1980.4,0.48075946]
[1771333841785,1.067,1981.4,1980.4,0.48075946]
[1771333842254,1.0681,1981.5,1980.4,0.48075946]
[1771333842454,1.26173412,1981.4,1980.4,0.001]
[1771333842701,1.26173412,1981.4,1980.4,1.26336016]
[1771333843010,2.32773412,1981.4,1980.5,0.47975946]
[1771333843205,0.48298875,1981.3,1980.4,1.26336631]
[1771333843370,2.32773412,1981.4,1980.4,1.74312577]
[1771333843758,0.48298875,1981.3,1980.4,0.001]
[1771333844475,1.26186149,1981.2,1980.4,0.001]
[1771333844703,1.26186149,1981.2,1980.4,0.47200327]
[1771333844982,2.32986149,1981.2,1980.4,0.47200327]
[1771333845972,1.26186149,1981.2,1980.4,0.47200327]
[1771333846200,1.26186149,1981.2,1980.4,0.001]
[1771333846702,1.26186149,1981.2,1980.5,1.26230749]
[1771333846996,1.26186149,1981.2,1980.4,1.7343745]
[1771333847200,1.26186149,1981.2,1980.5,0.001]
[1771333847518,1.74487591,1981.2,1980.5,0.001]
[1771333847688,0.48301442,1981.0,1980.0,0.95551937]
[1771333848269,0.48301442,1981.0,1980.0,0.00151937]
[1771333848515,0.48301442,1980.7,1980.0,0.00151937]
[1771333848690,1.26237123,1980.4,1980.0,0.00151937]
[1771333849879,1.74538565,1980.4,1980.0,0.00151937]
[1771333850100,1.74538565,1980.4,1979.4,2.21495804]
[1771333850606,2.81438565,1980.4,1979.4,2.21495804]
[1771333850808,0.48301442,1980.3,1979.4,0.952]
[1771333851107,0.48301442,1980.1,1979.0,1.26477337]
[1771333851407,0.48301442,1980.1,1979.0,1.74865194]
[1771333851779,1.038,1980.0,1979.0,1.74865194]
[1771333852188,1.52822211,1980.0,1979.0,0.48539794]
[1771333852480,0.49022211,1979.9,1979.0,0.00151937]
[1771333853119,1.26275381,1979.8,1979.0,0.00151937]
[1771333853409,1.26275381,1979.8,1979.0,0.48539794]
[1771333855096,1.26275381,1979.8,1979.0,0.00151937]
[1771333855294,5.54123736,1979.9,1979.0,0.00151937]
[1771333856413,5.05101525,1979.9,1979.0,0.00151937]
[1771333856612,6.11901525,1979.9,1979.0,0.00151937]
[1771333856991,6.60923736,1979.9,1979.0,0.00151937]
[1771333858299,6.60723736,1979.9,1979.0,0.00151937]
[1771333858618,6.11701525,1979.9,1979.0,0.00151937]
[1771333859712,5.05101525,1979.9,1979.0,0.48539794]
[1771333859889,6.11701525,1979.9,1979.0,0.48539794]
[1771333860385,6.11701525,1979.9,1979.1,1.26420044]
[1771333860913,0.49022211,1979.8,1979.1,0.001]
[1771333862203,0.49022211,1979.8,1978.7,1.26344705]
[1771333862407,1.26281759,1979.7,1978.8,0.48387857]
[1771333862731,1.26281759,1979.7,1978.9,0.48387857]
[1771333863507,1.26275381,1979.8,1978.9,1.74720668]
[1771333863705,0.0011,1980.3,1979.5,6.62805086]
[1771333864007,0.00151937,1981.0,1980.1,0.48387857]
[1771333864496,0.00151937,1981.0,1980.3,0.48387857]
[1771333866196,0.00151937,1982.0,1980.6,6.62805086]
[1771333866398,0.00151937,1982.0,1981.2,0.48387857]
[1771333866603,0.00151937,1982.0,1981.3,0.48387857]
[1771333867092,0.00151937,1982.0,1981.1,1.26192519]
[1771333868030,0.00151937,1982.0,1981.2,0.48387857]
[1771333868194,0.003,1982.3,1981.7,0.48387857]
[1771333868400,0.00151937,1983.0,1981.9,0.48387857]
[1771333868724,0.00151937,1983.0,1982.1,0.48387857]
[1771333869225,0.00151937,1983.0,1981.8,1.74535803]
[1771333869441,0.00151937,1983.0,1981.9,3.616562]
[1771333869630,0.00151937,1983.0,1981.9,2.968748]
[1771333869833,0.00151937,1983.0,1981.8,1.74535803]
[1771333870026,0.49174148,1983.0,1981.8,1.74535803]
[1771333870228,0.00151937,1983.0,1981.9,0.48387857]
[1771333870753,0.00151937,1983.0,1982.0,1.74523073]
[1771333871624,0.00151937,1983.0,1982.1,0.48387857]
[1771333871863,0.00151937,1983.0,1982.0,1.26135216]
[1771333871864,0.49022211,1985.5,1983.0,0.48387857]
[1771333872168,0.49022211,1985.2,1983.7,2.96134757]
[1771333872315,0.26487708,1986.0,1984.5,0.48387857]
[1771333872514,0.26487708,1986.0,1984.6,0.947]
[1771333872515,1.26033233,1986.0,1984.6,0.947]
[1771333872722,0.49022211,1985.9,1984.3,6.62805086]
[1771333872946,0.49022211,1985.9,1984.1,1.74387716]
[1771333872947,6.62805086,1985.7,1984.1,1.74387716]
[1771333873145,1.065,1985.6,1984.2,12.552768]
[1771333873327,0.49022211,1985.7,1984.3,0.48387857]
[1771333873520,0.49022211,1985.7,1984.1,1.25999859]
[1771333873714,0.49022211,1985.4,1984.0,0.00151937]
[1771333873914,0.49022211,1985.2,1984.0,1.26159152]
[1771333874146,6.62805086,1985.5,1984.0,1.26159152]
[1771333874147,0.1024,1985.4,1984.0,1.26159152]
[1771333874332,7.12729297,1985.2,1984.0,1.26159152]
[1771333874531,0.49924211,1985.0,1984.0,0.00151937]
[1771333874739,1.25950929,1984.9,1983.9,1.25865652]
[1771333875051,6.44603779,1985.0,1983.9,1.25865652]
[1771333875052,0.00151937,1985.0,1983.9,1.25865652]
[1771333875215,0.49924211,1984.9,1983.7,0.909]
[1771333875417,0.00151937,1985.0,1983.7,2.16923781]
[1771333875670,0.0011,1985.6,1984.7,0.4970234]
[1771333875948,0.00151937,1986.0,1985.0,12.3046394]
[1771333876146,0.0011,1985.7,1985.3,0.4970234]
[1771333876363,2.20779562,1986.8,1985.6,0.4970234]
[1771333876524,0.0011,1985.9,1985.4,1.863]
[1771333876846,2.20778096,1986.8,1985.6,1.25906526]
[1771333877413,0.94946606,1986.8,1985.6,1.25906526]
[1771333877615,2.20781461,1986.8,1985.6,1.25906526]
[1771333877928,2.20781461,1986.8,1985.9,19.3721284]
[1771333877929,0.94946606,1986.8,1985.9,19.3721284]
[1771333878240,0.94946606,1986.8,1985.7,8.8]
[1771333878241,2.20777609,1986.8,1985.7,8.8]
[1771333878447,0.94946606,1986.8,1985.7,8.8]
[1771333878647,0.94946606,1986.8,1985.8,1.25893846]
[1771333878972,2.20778343,1986.8,1985.8,1.25893846]
[1771333879167,0.94946606,1986.8,1985.8,1.25893846]
[1771333879367,2.20778958,1986.8,1985.7,10.986738]
[1771333879534,2.20778958,1986.8,1985.7,8.735692]
[1771333880466,2.20778958,1986.8,1985.6,5.03618893]
[1771333880467,2.20778002,1986.8,1985.6,5.03618893]
[1771333880669,7.88659585,1986.5,1985.4,1.863]
[1771333880965,1.25846199,1986.6,1985.4,3.12214411]
[1771333881122,3.23441724,1986.7,1985.4,3.12214411]
[1771333881721,0.94946606,1986.8,1985.5,6.5546204]
[1771333881948,0.94946606,1986.8,1985.6,10.368]
[1771333881949,2.20777798,1986.8,1985.6,10.368]
[1771333882215,2.20777798,1986.8,1985.6,9.273]
[1771333882746,2.20777798,1986.8,1985.7,1.25900186]
[1771333883122,6.62805086,1986.6,1985.5,5.03638084]
[1771333883322,6.62805086,1986.6,1985.1,0.4970234]
[1771333883323,0.49924211,1986.3,1985.1,5.03747937]
[1771333883535,2.47524211,1986.3,1985.1,1.25938239]
[1771333883754,7.12729297,1986.1,1985.0,0.00151937]
[1771333883921,7.12729297,1986.1,1985.0,1.26095825]
[1771333884357,0.49924211,1986.0,1985.0,1.26095825]
[1771333884556,8.19529297,1985.9,1985.0,0.00151937]
[1771333884734,0.49924211,1985.8,1985.0,0.00151937]
[1771333884933,1.75824397,1985.7,1985.0,0.00151937]
[1771333885129,0.49924211,1985.6,1985.0,0.00151937]
[1771333885332,7.12729297,1985.6,1984.3,5.03945884]
[1771333885656,0.49924211,1985.5,1984.3,1.25989013]
[1771333885952,0.49924211,1985.5,1984.2,2.2139053]
[1771333886172,7.12729297,1985.3,1984.2,2.21394795]
[1771333886332,1.068,1985.2,1984.2,2.21394795]
[1771333886526,1.068,1985.2,1984.2,1.25994795]
[1771333886835,7.88730638,1985.3,1984.1,5.04003448]
[1771333887032,1.12005552,1985.3,1984.1,5.04003448]
[1771333887751,1.12005552,1985.3,1984.1,1.26001713]
[1771333888256,0.49924211,1985.4,1985.1,0.001]
[1771333888431,1.069,1985.3,1984.1,1.75704053]
[1771333888761,1.069,1985.3,1985.0,0.001]
[1771333888959,1.069,1985.3,1984.1,1.75704053]
[1771333889161,1.069,1985.3,1984.8,0.001]
[1771333889749,2.3282622,1985.3,1984.8,0.001]
[1771333889946,2.32826245,1985.3,1984.8,0.001]
[1771333890147,1.069,1985.3,1984.1,1.26001713]
[1771333890349,2.32825713,1985.3,1984.1,1.26001713]
[1771333892258,1.067,1985.2,1984.1,1.26001713]
[1771333892444,1.25924321,1985.4,1984.1,1.26001713]
[1771333892642,1.975,1985.3,1984.1,1.26001713]
[1771333893437,3.23428226,1985.3,1984.1,1.26001713]
[1771333893865,1.25924693,1985.4,1984.1,1.26001713]
[1771333894063,1.067,1985.2,1984.1,1.26001713]
[1771333895936,1.25938239,1985.1,1984.1,1.26001713]
[1771333897366,1.7586245,1985.1,1984.0,0.00151937]
[1771333897555,0.49924211,1985.0,1984.0,1.2615997]
[1771333897865,0.49924211,1984.9,1984.0,0.00151937]
[1771333898166,1.75881486,1984.8,1984.0,0.00151937]
[1771333898469,1.75811717,1985.9,1984.2,0.4970234]
[1771333898644,1.75811717,1985.9,1984.5,12.7671344]
[1771333898645,0.932,1985.8,1984.5,12.7671344]
[1771333898850,0.932,1985.8,1984.5,0.4970234]
[1771333899938,0.49924211,1985.7,1984.3,2.97015]
[1771333900154,0.49924211,1985.7,1984.3,1.25989013]
[1771333900155,0.49924211,1985.5,1984.3,1.25989013]
[1771333900738,0.49924211,1985.5,1984.1,5.04000862]
[1771333901467,2.47224211,1985.4,1984.1,5.04000862]
[1771333901696,0.49924211,1985.3,1984.1,5.04000862]
[1771333901976,0.49924211,1985.3,1984.0,1.26155883]
[1771333902146,3.73056107,1985.2,1984.0,0.00151937]
[1771333902353,0.49924211,1985.1,1984.0,0.00151937]
[1771333902976,0.49924211,1985.1,1984.2,0.001]
[1771333904573,1.758643,1985.1,1984.2,0.001]
[1771333904865,1.97,1985.0,1984.2,0.001]
[1771333905238,1.25940089,1985.1,1984.2,0.001]
[1771333905434,1.062,1985.0,1984.2,0.001]
[1771333905665,0.47538907,1985.4,1984.2,0.001]
[1771333905965,3.22825552,1985.3,1984.2,0.001]
[1771333906268,1.061,1985.2,1984.2,0.001]
[1771333906654,1.061,1985.2,1984.2,1.26095363]
[1771333906836,2.32032148,1985.2,1984.2,1.26095363]
[1771333907041,1.25932148,1985.2,1984.2,1.26095363]
[1771333907262,1.061,1985.1,1984.2,1.26095363]
[1771333907556,1.061,1985.2,1984.2,1.26095363]
[1771333908155,1.73463262,1985.4,1984.2,1.26095363]
[1771333908354,1.968,1985.3,1984.2,1.26095363]
[1771333908666,1.968,1985.3,1984.2,0.001]
[1771333908975,1.968,1985.2,1984.2,0.001]
[1771333909173,0.47538907,1985.1,1984.2,0.001]
[1771333909874,7.06912822,1985.1,1984.2,0.001]
[1771333910785,1.73483491,1985.0,1984.2,0.001]
[1771333911476,0.48611163,1984.9,1984.2,0.001]
[1771333912159,6.59373915,1984.8,1984.2,0.001]
[1771333912480,0.48611163,1984.8,1984.2,0.001]
[1771333912880,1.25963621,1984.7,1984.2,0.001]
[1771333913250,1.06,1984.6,1984.2,0.001]
[1771333914978,2.3197274,1984.6,1984.2,0.001]
[1771333915363,2.3197274,1984.6,1984.2,0.00017528]
[1771333917161,2.3197274,1984.6,1984.0,0.00151937]
[1771333917364,9.39957818,1984.6,1983.7,1.26027121]